Cogmind - Beta 15 @@@ ROGUE MODE // 2025.05.31 @ 00:55:43 Player: Seikan The Soupcan Result: Core destroyed Performance ------------- Evolutions (0) 0 Regions Visited (1) 200 Robots Destroyed (4) 20 Value Destroyed (64) 64 Prototype IDs (0) 0 Alien Tech Used (0) 0 Bonus (0) 0 TOTAL SCORE: 284 Bonus ------- None Cogmind --------- Core Integrity 0/250 Matter 292/300 Energy 100/100 System Corruption 38% Temperature Warm (121) Movement Core (150) Ox2 Location -10/Materials Parts ------- > --- POWER (1) -------- Ion Engine > --- PROPULSION (2) --- Light Treads Light Treads > --- UTILITY (2) ------ (None) > --- WEAPON (2) ------- Small Laser Assault Rifle > --- INVENTORY (5) ---- Ion Engine Ion Engine Light Ion Engine Small Storage Unit Small Laser Peak State ------------ > --- POWER ------------ Ion Engine > --- PROPULSION ------- Light Treads Light Treads > --- UTILITY ---------- Small Storage Unit > --- WEAPON ----------- Small Laser Assault Rifle > --- INVENTORY -------- Ion Engine [Rating: 6] Favorites ----------- Power Ion Engine Engine Ion Engine Propulsion Light Treads Treads Light Treads Utility Small Storage Unit Storage Small Storage Unit Weapon Small Laser Energy Gun Small Laser Ballistic Gun Assault Rifle Build | -11 -10 ------- Run | Yrd Mat Slots Evolved . | . . Power . | . . Propulsion . | . . Utility . | . . Weapon . | . . Parts Attached 6 | 6 . Power 1 | 1 . Engine 1 | 1 . Core . | . . Reactor . | . . Propulsion 2 | 2 . Treads 2 | 2 . Leg . | . . Wheel . | . . Hover . | . . Flight . | . . Utility 1 | 1 . Device . | . . Storage 1 | 1 . Processor . | . . Hackware . | . . Protection . | . . Artifact . | . . Weapon 2 | 2 . Energy Gun 1 | 1 . Energy Cannon . | . . Ballistic Gun 1 | 1 . Ballistic Cannon . | . . Launcher . | . . Special Weapon . | . . Impact Weapon . | . . Slashing Weapon . | . . Piercing Weapon . | . . Special Melee Weapon . | . . Unidentified Prototypes . | . . Parts Lost . | . . Power . | . . Propulsion . | . . Utility . | . . Weapon . | . . Highest Loss Streak . | . . To Critical Strikes . | . . Average Backups 1 | 1 2 Power 1 | . 1 Propulsion . | . . Utility . | . . Weapon . | . . Tool/Special . | . . Unused Backups 4 | . 4 Power 3 | . 3 Propulsion . | . . Utility . | . . Weapon 1 | . 1 Tool/Special . | . . Average Slot Usage (%) 77 | . 77 Engine 14 | . 14 Treads 28 | . 28 Storage 6 | . 6 Energy Gun 14 | . 14 Ballistic Gun 14 | . 14 Peak Build Rating 6 | 6 6 Average Rating 5 | 5 5 On Entrance 3 | . 6 Naked Turns . | . . Heaviest Build 13 | 13 13 Greatest Support 40 | 40 40 Greatest Overweight (x) . | . . Average Overweight (x) . | . . Largest Inventory Capacity 8 | 8 8 Average Capacity 7 | 7 6 Most Carried 5 | 4 5 Average Carried 1 | . 2 Final Capacity 8 | 8 5 Final Carried 5 | 1 5 Class Distribution -------------------- 100% | Mutant Dominant Class ---------------- Mutant | -10/Materials Resources | -11 -10 ----------- Run | Yrd Mat Matter Collected 285 | 223 62 Remotely . | . . Salvage Created 89 | . 89 Parts 8 | . 8 Haulers Intercepted . | . . Recyclers Shooed . | . . Parts Field Recycled . | . . Retrieved Matter . | . . Parts Self-Destructed . | . . Prevented . | . . Kills | -11 -10 ------- Run | Yrd Mat Combat Hostiles Destroyed 4 | . 4 Guns 4 | . 4 Classes Destroyed 2 | . 2 Swarmer 3 | . 3 Grunt 1 | . 1 Best Kill Streak 3 | . 3 Combat Bots Only 3 | . 3 Max Kills in Single Turn 1 | . 1 Gunslinging . | . . Exploded . | . . Melee . | . . Uniques/NPCs Destroyed . | . . Combat | -11 -10 -------- Run | Yrd Mat Hostile Shots Fired 37 | . 37 Missed 8 | . 8 Hits 29 | . 29 Projectile 29 | . 29 Damage Taken 549 | . 549 Core 259 | . 259 Absorbed by Shields . | . . Core Remaining (%) 100 | 100 . Volleys Fired 24 | 6 18 Largest 2 | 2 2 Hottest 60 | 60 60 Shots Fired 37 | 12 25 Gun 37 | 12 25 Cannon . | . . Launcher . | . . Special . | . . Kinetic 13 | 6 7 Thermal 24 | 6 18 Explosive . | . . Electromagnetic . | . . Robot Hit Streak 4 | . 4 Robot Miss Streak 4 | . 4 Penetration Max . | . . Secondary Targets . | . . Shots Hit Robots 12 | . 12 Core Hits 7 | 2 5 Critical Kills . | . . Critical Parts Destroyed . | . . Critical Strikes . | . . Melee Attacks . | . . Impact . | . . Slashing . | . . Piercing . | . . Sneak Attacks . | . . Combat Hostiles . | . . Follow-up Attacks . | . . Damage Inflicted 258 | 31 227 Guns 135 | . 135 Cannons . | . . Explosions . | . . Melee . | . . Ramming 123 | 31 92 Kinetic 51 | . 51 Thermal 84 | . 84 Explosive . | . . Electromagnetic . | . . Impact . | . . Slashing . | . . Piercing . | . . Highest Corruption 38 | . 38 Average Corruption 8 | . 8 Corruption Purged . | . . Corruption Blocked . | . . Effects 5 | . 5 Matter Fused 1 | . 1 Heat Flow Errors 1 | . 1 Energy Discharges 2 | . 2 Alerts 1 | . 1 Overload Shots . | . . Overflow Damage . | . . Projectiles . | . . Explosions . | . . Melee . | . . Knockbacks . | . . Impact . | . . Kinetic . | . . Secondary . | . . Self-Inflicted Damage 92 | . 92 Shots . | . . Rammed 9 | 8 1 Targets Rammed 9 | 8 1 Kicked . | . . Crushed . | . . Highest Temperature 146 | . 146 Average Temperature 38 | . 38 Received Heat Transfer 108 | . 108 Siege Activations . | . . Martial Activations . | . . Shielding Activations . | . . Robots Disrupted . | . . Combat Hostiles . | . . Robots Corrupted . | . . Combat Hostiles . | . . Parts Fried . | . . Impact Corruptions . | . . Robots Melted . | . . Combat Hostiles . | . . Parts Melted . | . . Heat Transferred 200 | . 200 Parts Sabotaged . | . . Parts Stolen . | . . Parts Stripped . | . . Power Chain Reactions . | . . Alert | -11 -10 ------- Run | Yrd Mat Maximum Alert Level . | . . Low Security (%) 100 | 100 100 Level 1 . | . . Level 2 . | . . Level 3 . | . . Level 4 . | . . Level 5 . | . . High Security . | . . Max Security . | . . Peak Influence 75 | . 75 Initial . | . . Average 1 | . 20 Influence Increases 115 | . 115 Destroy 0b10 Robot/C 80 | . 80 Destroy Leader 20 | . 20 Lose Combat Pursuer 15 | . 15 Influence Decreases 110 | . 110 Time Decay 110 | . 110 Squads Dispatched 2 | . 2 Investigation 1 | . 1 Extermination . | . . Reinforcement 1 | . 1 Assault . | . . Garrison . | . . Intercept . | . . Searches Triggered . | . . Construction Impeded . | . . Haulers Reinforced . | . . Active Scanning Responses . | . . Cargo Convoy Interrupts . | . . Stealth | -11 -10 --------- Run | Yrd Mat Distress Signals . | . . Communications Jammed . | . . Distress Signals . | . . Times Spotted 7 | . 7 Peak Tracking Total 4 | . 4 Tactical Retreats 1 | . 1 Traps | -11 -10 ------- Run | Yrd Mat Traps Triggered . | . . Indirectly . | . . Trap Hack Attempts . | . . Triggered . | . . Disarmed . | . . Reprogrammed . | . . Reused . | . . Traps Extracted . | . . Installed . | . . Triggered . | . . Machines | -11 -10 ---------- Run | Yrd Mat Machines Disabled . | . . Max in Single Turn . | . . Machines Repaired . | . . Machines Dismantled . | . . Machines Sabotaged . | . . Overloaded Fab Kills . | . . Hacking | -11 -10 --------- Run | Yrd Mat Machines Accessed 1 | . 1 Terminals 1 | . 1 Fabricators . | . . Repair Stations . | . . Recycling Units . | . . Scanalyzers . | . . Garrison Access . | . . Total Hacks 2 | . 2 Successful 1 | . 1 Failed 1 | . 1 Catastrophic . | . . Database Lockouts . | . . Manual . | . . Terminals 2 | . 2 Fabricators . | . . Repair Stations . | . . Recycling Units . | . . Scanalyzers . | . . Garrison Access . | . . Terminal Hacks 1 | . 1 Robot Analysis 1 | . 1 Fabricator Hacks . | . . Repair Station Hacks . | . . Recycling Unit Hacks . | . . Scanalyzer . | . . Garrison Access Hacks . | . . Unauthorized Hacks . | . . Terminals . | . . Fabricators . | . . Repair Stations . | . . Recycling Units . | . . Scanalyzers . | . . Garrison Access . | . . Data Cores Recovered . | . . Used . | . . Hacking Detections 1 | . 1 Full Trace Events . | . . Feedback Events . | . . Feedback Blocked . | . . Robot Schematics Acquired . | . . Robots Built . | . . Authchips . | . . Time . | . . Total Robot Build Rating . | . . Part Schematics Acquired . | . . Parts Built . | . . Authchips . | . . Time . | . . Total Part Build Rating . | . . Parts Repaired . | . . Time . | . . Parts Recycled . | . . Recycled Matter . | . . Retrieved Matter . | . . Retrieved Components . | . . Parts Scanalyzed . | . . Part Schematics Acquired . | . . Parts Damaged . | . . Bothacking | -11 -10 ------------ Run | Yrd Mat Used RIF Installer . | . . Robots Hacked . | . . Non-combat . | . . Combat . | . . Robot Hacks Applied . | . . Relay Couplers Released . | . . Fabnet Peak Effective % . | . . Robots Rewired . | . . Allies Hacked . | . . Hacks Repelled . | . . Allies | -11 -10 -------- Run | Yrd Mat Total Allies . | . . Largest Group . | . . Highest-Rated Group . | . . Highest-Rated Ally . | . . Total Orders . | . . Ally Attacks . | . . Total Damage . | . . Kills . | . . Allies Corrupted . | . . Allies Melted . | . . Intel | -11 -10 ------- Run | Yrd Mat Active Infowar (turns) . | . . Robot Analysis Total 1 | . 1 Derelict Logs Recovered . | . . Drone Launches . | . . Drone Recoveries . | . . Exploration | -11 -10 ------------- Run | Yrd Mat Turns Passed 4498 | 4140 358 Spaces Moved 2718 | 2568 150 Core 11 | 11 . Treads 2707 | 2557 150 Legs . | . . Wheels . | . . Hover . | . . Flight . | . . Fastest Speed 50 | 50 160 Average Speed 159 | 159 160 Slowest Speed 160 | 160 160 Overloaded Moves . | . . Propulsion Burnouts . | . . Robots Hopped . | . . Potential Cave-ins . | . . Cave-ins Triggered . | . . Exploration Rate (%) 61 | 107 16 Regions Visited 1 Branch Regions . Pre-discovered Areas . | . . Known Exits Taken . | . . Unknown Exits Taken 1 | 1 . Scrap Searched . | . . Spaces Dug . | . . Terrain Destroyed . | . . Melee . | . . Projectile . | . . AOE . | . . Terrain Rammed 46 | . 46 Walls Destroyed . | . . Machines Disabled . | . . Actions | -11 -10 --------- Run | Yrd Mat Total 2815 | 2595 220 Wait 1 | 1 . Move 2717 | 2567 150 Hop . | . . Pick Up 10 | 7 3 Fast Attach . | . . Attach 7 | 6 1 Detach 2 | . 2 Swap . | . . Drop . | . . Fire 24 | 6 18 Melee . | . . Ram 45 | . 45 Kick . | . . Crush 9 | 8 1 Escape Stasis . | . . Rewire . | . . Trap . | . . Miscellaneous . | . . Route ------- -11/Scrapyard -10/Materials (discovered 1 exit: [*Min]) History --------- Turn | Location | Event 8 | -11/Scrapyard | Discovered new exit (range 14) 4141 | -11/Scrapyard | Entered Materials 4142 | -10/Materials | Build established: Mutant 4142 | -10/Materials | Met a group of wandering Federalists 4204 | -10/Materials | Discovered new exit (range 11) 4454 | -10/Materials | System corruption reached 10% 4458 | -10/Materials | Core integrity fell below 50% 4485 | -10/Materials | Core integrity fell below 20% 4490 | -10/Materials | System corruption reached 30% 4499 | -10/Materials | Core destroyed Last Messages --------------- Slammed into Wall. Destabilizing: Core damaged (-10). Slammed into Wall. Destabilizing: System corrupted (+1). Destabilizing: Core damaged (-2). Slammed into Wall. Destabilizing: System corrupted (+2). Slammed into Wall. Destabilizing: System corrupted (+2). Destabilizing: Core damaged (-10). Slammed into Wall. Destabilizing: Core damaged (-7). Slammed into Wall. Destabilizing: System corrupted (+2). System corrupted: Heat flow error (+171). Slammed into Wall. Destabilizing: System corrupted (+2). Destabilizing: Core damaged (-10). Slammed into Wall. Destabilizing: Core damaged (-10). Map ----- +----------------------------------------------------+ | ??????????# #?????????????????????? | | ??????????# #?????????????????????? | | ??????????# #?????????????????????? | | ??????????# #?????????????????????? | | ??????????# #?????????????????????? | | ??????????+ +?????????????????????? | | ??????????# #?????????????????????? | | ??????????### #?????????????????????? | | ????????????# #?????????????????????? | | ????????????#%#?????????????????????? | | ????#####???# #?????????????????????? | | ????# #####%#######???????????????? | | ????# =[% #???????????????? | | ????# ####### #???????????????? | | ????# ###???# < + ""????????????? | | ????# T#???# #??"????????????? | | ????# ""#???? #???????????????? | | ????# ###????# ##???????????????? | | ????# ######## #????????????????? | | ????# + [ # #########????????? | | ????# # + ## #????????? | | ????# # ! # ## #????????? | | ???## # # ## #????????? | | ???#T ######## ## #????????? | | ???## #######% # #????????? | | ????# !%@ # "" #????????? | | ????# = + #????????? | | ????# # "" #????????? | | ????# ####### # #????????? | | ????# #?????####### #????????? | | ????# #???????????# % #????????? | | ????# #???????????# #????????? | | ????# #???????????# #????????? | | ????# #???????????########????????? | | ????# #???????????????????????????? | | ????# #???????????????????????????? | | ????# #???????????????????????????? | | ????# #???????????????????????????? | | ????# #???????????????????????????? | | ????# #???????????????????????????? | | ????# #???????????????????????????? | | ????# #???????????????????????????? | | ????# #???????????????????????????? | | ????# #???????????????????????????? | | ????# #???????????????????????????? | | ????# #???????????????????????????? | | ????#####???????????????????????????? | | ????????????????????????????????????? | | ????????????????????????????????????? | | ????????????????????????????????????? | +----------------------------------------------------+ Best States ------------- Heat Dissipation 25 Energy Generation 10 Energy Capacity 250 Matter Stores 300 Matter Capacity 300 Sight Range 16 Terrain Scan Density 10 Evasion (%) 50 Recoil Reduction 2 Item Schematics ----------------- None Robot Schematics ------------------ None Fabricated ------------ Nothing Repaired ---------- Nothing Alien Tech Used ----------------- None Achievements -------------- System Compromised Challenges ------------ None Game ------ Seed PhasingSwarmHammer Manual? 0 Play Time 00:17:45 Cumulative 1.8 hours Start 2025.05.31 @ 00:32:04 End 2025.05.31 @ 00:55:43 Sessions 1 Manual Loads 0 Difficulty Rogue Special Mode None Game No. 6 Rogue 5 Adventurer 1 Explorer 0 Win Type - Total 0 Types 0/0/0/0/0/0/0/0/0/0 Lore% 1 Gallery% 6 Achievement% 8 Wizard Run 0 Options --------- Layout 0 ASCII 0 Keyboard 1 Movement Arrows Keybinds 0 Fullscreen 2 Font 18/SmallcapsGlow Map View 76x50 Zoom Use 0% Tactical HUD 0 Map Filters NONE Filters NONE Steam 1 RUN: 91894a7b-f14f-495b-91ce-8df633f94fec